[Event "Open Nuevo Centro. Jornada 2"]
[Site "Chess.com"]
[Date "2020.06.26"]
[Round "2"]
[White "Marín Corresa, Arturo"]
[Black "Pardo Ruiz, Carlos"]
[Result "0-1"]
[WhiteElo "2205"]
[BlackElo "1849"]
[TimeControl "180+2"]
[EndTime "10:49:48 PDT"]
[Termination "Victoria de Carlitoscarlsen por tiempo"]

1. e4 {[%clk 0:03:01.9]} 1... Nf6 {[%clk 0:02:59.6]} 2. e5 {[%clk 0:03:02.3]}
2... Nd5 {[%clk 0:03:00]} 3. d4 {[%clk 0:03:03]} 3... d6 {[%clk 0:03:00.8]} 4.
Nf3 {[%clk 0:03:03]} 4... Bg4 {[%clk 0:03:00.7]} 5. h3 {[%clk 0:03:03.2]} 5...
Bxf3 {[%clk 0:02:57.5]} 6. Qxf3 {[%clk 0:03:03.4]} 6... e6 {[%clk 0:02:58]} 7.
a3 {[%clk 0:03:03.3]} 7... dxe5 {[%clk 0:02:58.2]} 8. dxe5 {[%clk 0:02:59]} 8...
Nc6 {[%clk 0:02:58.9]} 9. Bb5 {[%clk 0:02:58.9]} 9... Bc5 {[%clk 0:02:55]} 10.
O-O {[%clk 0:02:57.4]} 10... O-O {[%clk 0:02:55.1]} 11. Bxc6 {[%clk 0:02:56.9]}
11... bxc6 {[%clk 0:02:55.6]} 12. Qg3 {[%clk 0:02:53.9]} 12... Kh8 {[%clk
0:02:51.7]} 13. Nd2 {[%clk 0:02:42.3]} 13... Rb8 {[%clk 0:02:49.9]} 14. Nf3
{[%clk 0:02:40.4]} 14... h6 {[%clk 0:02:45.8]} 15. b4 {[%clk 0:02:20.9]} 15...
Be7 {[%clk 0:02:40.1]} 16. Rd1 {[%clk 0:02:04]} 16... Qc8 {[%clk 0:02:37.7]} 17.
c4 {[%clk 0:01:35.1]} 17... Nc3 {[%clk 0:02:36.9]} 18. Re1 {[%clk 0:01:30.1]}
18... Rd8 {[%clk 0:02:28.1]} 19. Be3 {[%clk 0:01:21.9]} 19... Qb7 {[%clk
0:02:23]} 20. Rac1 {[%clk 0:01:05.1]} 20... Na4 {[%clk 0:02:15.3]} 21. Qg4
{[%clk 0:00:59.4]} 21... c5 {[%clk 0:02:01.9]} 22. b5 {[%clk 0:00:58.1]} 22...
Nb2 {[%clk 0:01:55.4]} 23. Qh5 {[%clk 0:00:45.4]} 23... Kg8 {[%clk 0:01:52]} 24.
Rc3 {[%clk 0:00:29.3]} 24... Na4 {[%clk 0:01:43.2]} 25. Rc2 {[%clk 0:00:28.1]}
25... Nb6 {[%clk 0:01:40]} 26. Nd2 {[%clk 0:00:23.4]} 26... Nd7 {[%clk
0:01:36.3]} 27. Ne4 {[%clk 0:00:22.6]} 27... Qxe4 {[%clk 0:01:34.4]} 28. f3
{[%clk 0:00:13.4]} 28... Qxc2 {[%clk 0:01:34.7]} 29. Bxh6 {[%clk 0:00:10.9]}
29... gxh6 {[%clk 0:01:33.6]} 30. Re4 {[%clk 0:00:11.4]} 30... Qc1+ {[%clk
0:01:31.8]} 31. Kh2 {[%clk 0:00:11.6]} 31... Bg5 {[%clk 0:01:27.5]} 32. h4
{[%clk 0:00:07.9]} 32... Bf4+ {[%clk 0:01:27.2]} 33. Kh3 {[%clk 0:00:08.5]}
33... Nxe5 {[%clk 0:01:22.1]} 34. Rxe5 {[%clk 0:00:03]} 34... Bxe5 {[%clk
0:01:22.4]} 35. Qxe5 {[%clk 0:00:03.4]} 35... Rd1 {[%clk 0:01:17]} 0

[Event "Open Nuevo Centro. Jornada 2"]
[Site "Chess.com"]
[Date "2020.06.26"]
[Round "2"]
[White "Gerona Maura, Jesus"]
[Black "Martinez Hernandez, Paula"]
[Result "0-1"]
[WhiteElo "1754"]
[BlackElo "2040"]
[TimeControl "180+2"]
[EndTime "10:49:48 PDT"]
[Termination "Victoria de pauliximartinez por abandono"]

1. e4 {[%clk 0:03:01.9]} 1... c6 {[%clk 0:02:57.8]} 2. Nf3 {[%clk 0:03:02]} 2...
d5 {[%clk 0:02:58.9]} 3. Nc3 {[%clk 0:03:02.9]} 3... Nf6 {[%clk 0:02:57]} 4. e5
{[%clk 0:02:59.3]} 4... Ne4 {[%clk 0:02:57.8]} 5. Bd3 {[%clk 0:02:54.1]} 5...
Nc5 {[%clk 0:02:58.4]} 6. Qe2 {[%clk 0:02:47.3]} 6... Bg4 {[%clk 0:02:54.5]} 7.
O-O {[%clk 0:02:43.9]} 7... e6 {[%clk 0:02:52.3]} 8. h3 {[%clk 0:02:43.9]} 8...
Bh5 {[%clk 0:02:51.1]} 9. b3 {[%clk 0:02:40.1]} 9... Nbd7 {[%clk 0:02:26.9]} 10.
g4 {[%clk 0:02:27.8]} 10... Bg6 {[%clk 0:02:22]} 11. Bb2 {[%clk 0:02:22.9]}
11... Nxd3 {[%clk 0:02:05.3]} 12. cxd3 {[%clk 0:02:22.7]} 12... c5 {[%clk
0:02:04.1]} 13. Nb5 {[%clk 0:02:19.4]} 13... a6 {[%clk 0:02:03.2]} 14. Nd6+
{[%clk 0:02:20]} 14... Bxd6 {[%clk 0:02:03.6]} 15. exd6 {[%clk 0:02:21]} 15...
O-O {[%clk 0:02:00.2]} 16. Ne5 {[%clk 0:01:42.1]} 16... Nf6 {[%clk 0:01:45.7]}
17. Nxg6 {[%clk 0:01:35.6]} 17... hxg6 {[%clk 0:01:42.5]} 18. Qe5 {[%clk
0:01:30.5]} 18... d4 {[%clk 0:01:34.5]} 19. Qxc5 {[%clk 0:01:15.8]} 19... Qd7
{[%clk 0:01:10.4]} 20. Qxd4 {[%clk 0:01:15.7]} 20... Rfd8 {[%clk 0:01:04.6]} 21.
Qf4 {[%clk 0:00:37.7]} 21... Qxd6 {[%clk 0:00:57.8]} 22. Be5 {[%clk 0:00:33]}
22... Qxd3 {[%clk 0:00:51.7]} 23. Bxf6 {[%clk 0:00:32.7]} 23... gxf6 {[%clk
0:00:52]} 24. Qxf6 {[%clk 0:00:33.6]} 24... Qxh3 {[%clk 0:00:40.5]} 25. Qg5
{[%clk 0:00:26.6]} 25... Rd4 {[%clk 0:00:31.7]} 26. f3 {[%clk 0:00:24.4]} 26...
Qg3+ {[%clk 0:00:21.5]} 27. Kh1 {[%clk 0:00:24.9]} 27... Kg7 {[%clk 0:00:20.9]}
0

[Event "Open Nuevo Centro. Jornada 2"]
[Site "Chess.com"]
[Date "2020.06.26"]
[Round "2"]
[White "Pallardo Lozoya, Jose Vicente"]
[Black "Gutierrez Marco, Dario"]
[Result "1-0"]
[WhiteElo "1758"]
[BlackElo "1903"]
[TimeControl "180+2"]
[EndTime "10:49:50 PDT"]
[Termination "Victoria de PallardoChess por abandono"]

1. e4 {[%clk 0:02:42.9]} 1... c5 {[%clk 0:03:00]} 2. Nc3 {[%clk 0:02:43.8]} 2...
e6 {[%clk 0:03:01]} 3. g3 {[%clk 0:02:45.4]} 3... Nc6 {[%clk 0:03:01.9]} 4. Bg2
{[%clk 0:02:46.7]} 4... Nf6 {[%clk 0:02:58.4]} 5. d3 {[%clk 0:02:48]} 5... d6
{[%clk 0:02:59.6]} 6. Nh3 {[%clk 0:02:47.1]} 6... Be7 {[%clk 0:03:00.4]} 7. O-O
{[%clk 0:02:48.3]} 7... Rb8 {[%clk 0:02:59.6]} 8. f4 {[%clk 0:02:49.1]} 8... O-O
{[%clk 0:03:00.1]} 9. g4 {[%clk 0:02:38.2]} 9... d5 {[%clk 0:02:57.9]} 10. g5
{[%clk 0:02:01.8]} 10... Ne8 {[%clk 0:02:51.9]} 11. exd5 {[%clk 0:01:58.4]}
11... exd5 {[%clk 0:02:52.4]} 12. Nxd5 {[%clk 0:01:59.1]} 12... Bxh3 {[%clk
0:02:53]} 13. Nxe7+ {[%clk 0:02:00]} 13... Nxe7 {[%clk 0:02:50.1]} 14. Bxh3
{[%clk 0:02:00.6]} 14... Qd4+ {[%clk 0:02:50.1]} 15. Kh1 {[%clk 0:01:58.3]}
15... Nd6 {[%clk 0:02:40.6]} 16. f5 {[%clk 0:01:43]} 16... Nd5 {[%clk
0:02:36.4]} 17. c3 {[%clk 0:01:22.8]} 17... Qh4 {[%clk 0:02:27.1]} 18. Bg2
{[%clk 0:01:15.7]} 18... Ne7 {[%clk 0:02:21.4]} 19. f6 {[%clk 0:01:07.1]} 19...
Ng6 {[%clk 0:02:22.1]} 20. fxg7 {[%clk 0:01:06]} 20... Kxg7 {[%clk 0:02:21.4]}
21. Qf3 {[%clk 0:01:01.3]} 21... f5 {[%clk 0:02:15]} 22. gxf6+ {[%clk 0:00:58]}
22... Rxf6 {[%clk 0:02:16]} 23. Qxf6+ {[%clk 0:00:52]} 23... Qxf6 {[%clk
0:02:15.3]} 24. Bh6+ {[%clk 0:00:52.4]} 24... Kf7 {[%clk 0:02:09.5]} 25. Bd5+
{[%clk 0:00:39.2]} 25... Ke7 {[%clk 0:02:07.6]} 26. Rae1+ {[%clk 0:00:39.5]}
26... Ne5 {[%clk 0:02:06.6]} 27. Rxf6 {[%clk 0:00:34.3]} 27... Kxf6 {[%clk
0:02:08.5]} 28. Bf4 {[%clk 0:00:28.7]} 28... Re8 {[%clk 0:02:00.2]} 29. d4
{[%clk 0:00:21.5]} 29... cxd4 {[%clk 0:02:00.3]} 30. cxd4 {[%clk 0:00:22.7]}
30... Nd3 {[%clk 0:01:48.8]} 31. Rxe8 {[%clk 0:00:19.1]} 31... Nxe8 {[%clk
0:01:50.7]} 32. Be5+ {[%clk 0:00:17.9]} 32... Nxe5 {[%clk 0:01:48.7]} 33. dxe5+
{[%clk 0:00:19.8]} 33... Kxe5 {[%clk 0:01:50.6]} 34. Bxb7 {[%clk 0:00:21.1]}
34... Nd6 {[%clk 0:01:49.6]} 35. Ba6 {[%clk 0:00:22.2]} 35... Ne4 {[%clk
0:01:47.3]} 36. Bd3 {[%clk 0:00:22.2]} 36... Nc5 {[%clk 0:01:47.2]} 37. Bxh7
{[%clk 0:00:22]} 37... Na4 {[%clk 0:01:48.2]} 38. b3 {[%clk 0:00:21.5]} 38...
Nc3 {[%clk 0:01:48]} 39. a3 {[%clk 0:00:22.8]} 39... Nb5 {[%clk 0:01:48.1]} 40.
a4 {[%clk 0:00:23.8]} 40... Nd4 {[%clk 0:01:48.8]} 41. Bg8 {[%clk 0:00:25.2]}
41... a5 {[%clk 0:01:46.5]} 42. Kg2 {[%clk 0:00:26.2]} 42... Nf5 {[%clk
0:01:47.2]} 43. h3 {[%clk 0:00:26.2]} 43... Nh6 {[%clk 0:01:47.1]} 44. Bc4
{[%clk 0:00:25.6]} 44... Nf5 {[%clk 0:01:48.2]} 45. Kf3 {[%clk 0:00:26]} 45...
Nd4+ {[%clk 0:01:48.8]} 46. Kg4 {[%clk 0:00:26.8]} 46... Nf5 {[%clk 0:01:50.5]}
47. Kg5 {[%clk 0:00:26.7]} 47... Ne3 {[%clk 0:01:52]} 48. h4 {[%clk 0:00:27.9]}
48... Nxc4 {[%clk 0:01:51.5]} 49. bxc4 {[%clk 0:00:28.8]} 49... Kd4 {[%clk
0:01:53.4]} 50. h5 {[%clk 0:00:30.4]} 50... Kxc4 {[%clk 0:01:55.3]} 51. h6
{[%clk 0:00:32.3]} 51... Kb4 {[%clk 0:01:57]} 52. h7 {[%clk 0:00:34.1]} 52...
Kxa4 {[%clk 0:01:58.9]} 53. h8=Q {[%clk 0:00:35.2]} 53... Ka3 {[%clk 0:01:59.4]}
54. Qc3+ {[%clk 0:00:35.3]} 54... Ka4 {[%clk 0:01:59.7]} 55. Qc4+ {[%clk
0:00:36.7]} 55... Ka3 {[%clk 0:02:00.7]} 56. Qb5 {[%clk 0:00:38.6]} 56... a4
{[%clk 0:02:01.8]} 57. Kf4 {[%clk 0:00:39.8]} 1

[Event "Open Nuevo Centro. Jornada 2"]
[Site "Chess.com"]
[Date "2020.06.26"]
[Round "2"]
[White "Beneyto de Ramon, Guillermo"]
[Black "Ainsa Jimenez, Lucas"]
[Result "1-0"]
[WhiteElo "1511"]
[BlackElo "913"]
[TimeControl "180+2"]
[EndTime "10:49:51 PDT"]
[Termination "Victoria de GUILLETE por jaque mate"]

1. c4 {[%clk 0:03:01.7]} 1... e5 {[%clk 0:02:22.6]} 2. Nc3 {[%clk 0:03:01.8]}
2... Nc6 {[%clk 0:02:20.1]} 3. g3 {[%clk 0:03:02.2]} 3... Nf6 {[%clk 0:02:20.2]}
4. Bg2 {[%clk 0:03:02.9]} 4... Bc5 {[%clk 0:02:19.9]} 5. Nf3 {[%clk 0:03:03.1]}
5... O-O {[%clk 0:02:17.9]} 6. O-O {[%clk 0:03:03.6]} 6... Re8 {[%clk
0:02:16.7]} 7. d3 {[%clk 0:03:03.7]} 7... d6 {[%clk 0:02:16.7]} 8. Bg5 {[%clk
0:03:03]} 8... h6 {[%clk 0:02:14.9]} 9. Bh4 {[%clk 0:02:59.3]} 9... Be6 {[%clk
0:02:11.2]} 10. Rb1 {[%clk 0:02:51.3]} 10... b6 {[%clk 0:02:07.4]} 11. Ne4
{[%clk 0:02:43.1]} 11... Nxe4 {[%clk 0:02:07.2]} 12. Bxd8 {[%clk 0:02:43.1]}
12... Rexd8 {[%clk 0:02:07.9]} 13. dxe4 {[%clk 0:02:43.5]} 13... Bxc4 {[%clk
0:02:05.6]} 14. b3 {[%clk 0:02:37.8]} 14... Be6 {[%clk 0:02:04.6]} 15. a3 {[%clk
0:02:18.9]} 15... Bxa3 {[%clk 0:01:58.4]} 16. e3 {[%clk 0:02:06.4]} 16... Bc5
{[%clk 0:01:49.4]} 17. Nh4 {[%clk 0:01:59.6]} 17... Rd7 {[%clk 0:01:39.3]} 18.
Nf5 {[%clk 0:01:57.2]} 18... Rad8 {[%clk 0:01:30]} 19. Qd2 {[%clk 0:01:40.5]}
19... Bb4 {[%clk 0:01:26.7]} 20. Qc2 {[%clk 0:01:33.3]} 20... Bc5 {[%clk
0:01:22.6]} 21. Rb2 {[%clk 0:01:13.1]} 21... Nb4 {[%clk 0:01:20.4]} 22. Qd2
{[%clk 0:01:07.3]} 22... Nc6 {[%clk 0:01:15.7]} 23. Rfb1 {[%clk 0:00:39]} 23...
Bb4 {[%clk 0:01:15.1]} 24. Qc1 {[%clk 0:00:34.6]} 24... Bc5 {[%clk 0:01:13.3]}
25. b4 {[%clk 0:00:34.7]} 25... Bxe3 {[%clk 0:01:08.9]} 26. fxe3 {[%clk
0:00:34.8]} 26... Ne7 {[%clk 0:01:08]} 27. Nxe7+ {[%clk 0:00:35.2]} 27... Rxe7
{[%clk 0:01:08.9]} 28. Rc2 {[%clk 0:00:30.8]} 28... d5 {[%clk 0:01:07.2]} 29.
exd5 {[%clk 0:00:30.1]} 29... Bxd5 {[%clk 0:01:05.8]} 30. Bxd5 {[%clk
0:00:31.2]} 30... Rxd5 {[%clk 0:01:05.8]} 31. Rxc7 {[%clk 0:00:32.1]} 31... Rxc7
{[%clk 0:01:05.9]} 32. Qxc7 {[%clk 0:00:34]} 32... g6 {[%clk 0:01:04.6]} 33. Rc1
{[%clk 0:00:29.2]} 33... Kg7 {[%clk 0:01:03.9]} 34. e4 {[%clk 0:00:29.2]} 34...
Rd4 {[%clk 0:01:02.9]} 35. Qxe5+ {[%clk 0:00:29.3]} 35... f6 {[%clk 0:01:02.5]}
36. Qe7+ {[%clk 0:00:29.7]} 36... Kg8 {[%clk 0:01:02.3]} 37. Rc8+ {[%clk
0:00:31.3]} 37... Rd8 {[%clk 0:01:00]} 38. Rxd8# {[%clk 0:00:32.7]} 1

[Event "Open Nuevo Centro. Jornada 2"]
[Site "Chess.com"]
[Date "2020.06.26"]
[Round "2"]
[White "Saiz Sapena, Veronica"]
[Black "Perrot, Fabien "]
[Result "1-0"]
[WhiteElo "1554"]
[BlackElo "1000"]
[TimeControl "180+2"]
[EndTime "10:50:12 PDT"]
[Termination "Victoria de Titina1 por abandono"]

1. e4 {[%clk 0:03:00.2]} 1... e5 {[%clk 0:02:58.4]} 2. d4 {[%clk 0:02:59.8]}
2... f6 {[%clk 0:02:51.6]} 3. dxe5 {[%clk 0:02:57.7]} 3... fxe5 {[%clk
0:02:51.9]} 4. Bc4 {[%clk 0:02:54.6]} 4... g6 {[%clk 0:02:49.4]} 5. Nc3 {[%clk
0:02:51.6]} 5... Bb4 {[%clk 0:02:47.3]} 6. Bd2 {[%clk 0:02:48.7]} 6... d6 {[%clk
0:02:46.5]} 7. Nf3 {[%clk 0:02:49.3]} 7... Bg4 {[%clk 0:02:46.7]} 8. h3 {[%clk
0:02:48.8]} 8... Bxf3 {[%clk 0:02:43.6]} 9. Qxf3 {[%clk 0:02:48.6]} 9... Qe7
{[%clk 0:02:45.1]} 10. Nd5 {[%clk 0:02:42]} 10... Bxd2+ {[%clk 0:02:41.5]} 11.
Kxd2 {[%clk 0:02:42]} 11... Qg7 {[%clk 0:02:14.4]} 12. Raf1 {[%clk 0:02:29.8]}
12... c6 {[%clk 0:02:13]} 13. Ne3 {[%clk 0:02:24.4]} 13... Nd7 {[%clk
0:02:04.1]} 14. c3 {[%clk 0:02:19.2]} 14... O-O-O {[%clk 0:02:03.9]} 15. Kc1
{[%clk 0:02:17.3]} 15... Rf8 {[%clk 0:02:01.6]} 16. Qg4 {[%clk 0:02:16.8]} 16...
Nf6 {[%clk 0:01:57.6]} 17. Qh4 {[%clk 0:02:12.1]} 17... g5 {[%clk 0:01:45]} 18.
Qg3 {[%clk 0:02:11.8]} 18... Nxe4 {[%clk 0:01:45.2]} 19. Qg4 {[%clk 0:02:08.6]}
19... Nxf2 {[%clk 0:01:31.6]} 20. Rxf2 {[%clk 0:02:08]} 20... Rxf2 {[%clk
0:01:31.1]} 21. Nf5 {[%clk 0:02:08.5]} 21... Rxf5 {[%clk 0:01:04]} 22. Qxf5
{[%clk 0:02:08.4]} 22... Qf6 {[%clk 0:00:48.8]} 23. Qc2 {[%clk 0:01:55.8]} 23...
h6 {[%clk 0:00:40.9]} 24. b4 {[%clk 0:01:54.4]} 24... b5 {[%clk 0:00:36.4]} 25.
Rf1 {[%clk 0:01:51.9]} 25... Qg7 {[%clk 0:00:31.3]} 26. Bd3 {[%clk 0:01:50.8]}
26... Rf8 {[%clk 0:00:24.6]} 27. a4 {[%clk 0:01:45.2]} 27... Rxf1+ {[%clk
0:00:20.1]} 28. Bxf1 {[%clk 0:01:44.5]} 28... Kb7 {[%clk 0:00:14.8]} 29. axb5
{[%clk 0:01:43.8]} 29... cxb5 {[%clk 0:00:14.6]} 30. Qe4+ {[%clk 0:01:43.8]}
30... Kb6 {[%clk 0:00:09.1]} 31. Qe3+ {[%clk 0:01:43]} 31... Kb7 {[%clk
0:00:07.6]} 32. Bxb5 {[%clk 0:01:43]} 32... a6 {[%clk 0:00:06.6]} 33. Qe4+
{[%clk 0:01:40.5]} 33... Kc7 {[%clk 0:00:04.8]} 34. Qc6+ {[%clk 0:01:39.6]}
34... Kd8 {[%clk 0:00:06.3]} 35. Bxa6 {[%clk 0:01:38.8]} 35... Ke7 {[%clk
0:00:04.4]} 36. Bb5 {[%clk 0:01:36.6]} 36... Ke6 {[%clk 0:00:05]} 37. Bc4+
{[%clk 0:01:34.5]} 37... Ke7 {[%clk 0:00:06.2]} 38. Kb2 {[%clk 0:01:34.1]} 38...
Ke8 {[%clk 0:00:04.4]} 39. Ba6 {[%clk 0:01:32.8]} 39... Qe7 {[%clk 0:00:04.5]}
40. Qc8+ {[%clk 0:01:31.9]} 40... Kf7 {[%clk 0:00:05.1]} 41. Bc4+ {[%clk
0:01:31.5]} 41... Kf6 {[%clk 0:00:05.7]} 42. Qh8+ {[%clk 0:01:30.1]} 42... Kf5
{[%clk 0:00:05.3]} 43. Qxh6 {[%clk 0:01:27.4]} 43... Qe6 {[%clk 0:00:05]} 44.
Bxe6+ {[%clk 0:01:25.9]} 1

[Event "Open Nuevo Centro. Jornada 2"]
[Site "Chess.com"]
[Date "2020.06.26"]
[Round "2"]
[White "Sanchis Bon, Sergi"]
[Black "Rodriguez Rodriguez, Joan David "]
[Result "0-1"]
[WhiteElo "1003"]
[BlackElo "1611"]
[TimeControl "180+2"]
[EndTime "10:50:14 PDT"]
[Termination "Victoria de Not_Jr_chess por jaque mate"]

1. e4 {[%clk 0:03:01.9]} 1... e5 {[%clk 0:03:01]} 2. Qf3 {[%clk 0:03:01]} 2...
Nf6 {[%clk 0:02:58.7]} 3. g4 {[%clk 0:02:59.9]} 3... d5 {[%clk 0:02:53.2]} 4. h3
{[%clk 0:02:55.2]} 4... dxe4 {[%clk 0:02:51.7]} 5. Qg3 {[%clk 0:02:48.6]} 5...
Nc6 {[%clk 0:02:39.1]} 6. g5 {[%clk 0:02:37.8]} 6... Nh5 {[%clk 0:02:20.4]} 7.
Qh4 {[%clk 0:02:32.8]} 7... g6 {[%clk 0:02:13.2]} 8. f3 {[%clk 0:02:24.7]} 8...
exf3 {[%clk 0:02:05.1]} 9. Qf2 {[%clk 0:02:22.5]} 9... e4 {[%clk 0:01:58]} 10.
Bc4 {[%clk 0:02:16.2]} 10... Ne5 {[%clk 0:01:34.6]} 11. Bb3 {[%clk 0:02:09.9]}
11... Nf4 {[%clk 0:01:34.7]} 12. Qg3 {[%clk 0:01:53.5]} 12... Ng2+ {[%clk
0:01:33.9]} 13. Kd1 {[%clk 0:01:41.6]} 13... Bd6 {[%clk 0:01:18.3]} 14. Qf2
{[%clk 0:01:12]} 14... O-O {[%clk 0:01:00]} 15. d3 {[%clk 0:01:04]} 15... e3
{[%clk 0:00:56]} 16. Qg3 {[%clk 0:00:55.7]} 16... e2+ {[%clk 0:00:38.9]} 17.
Nxe2 {[%clk 0:00:50.9]} 17... fxe2+ {[%clk 0:00:38.8]} 18. Kxe2 {[%clk
0:00:49.4]} 18... Re8 {[%clk 0:00:33.4]} 19. Qxg2 {[%clk 0:00:41.7]} 19... Ng4+
{[%clk 0:00:33.1]} 20. Kf1 {[%clk 0:00:36.1]} 20... Ne3+ {[%clk 0:00:31]} 21.
Bxe3 {[%clk 0:00:34.4]} 21... Rxe3 {[%clk 0:00:32.9]} 22. h4 {[%clk 0:00:24]}
22... Rg3 {[%clk 0:00:26.6]} 23. Qd2 {[%clk 0:00:16]} 23... Qd7 {[%clk
0:00:23.4]} 24. Nc3 {[%clk 0:00:14.8]} 24... Qf5+ {[%clk 0:00:24]} 25. Qf2
{[%clk 0:00:14.1]} 25... Rf3 {[%clk 0:00:24.2]} 26. Qxf3 {[%clk 0:00:14.5]}
26... Qxf3+ {[%clk 0:00:26.1]} 27. Ke1 {[%clk 0:00:14.2]} 27... Bg3+ {[%clk
0:00:26.3]} 28. Kd2 {[%clk 0:00:14.2]} 28... Bf4+ {[%clk 0:00:25.2]} 29. Ke1
{[%clk 0:00:14]} 29... Qxh1+ {[%clk 0:00:26.3]} 30. Ke2 {[%clk 0:00:13.8]} 30...
Bg4+ {[%clk 0:00:26.3]} 31. Kf2 {[%clk 0:00:13.9]} 31... Qf3+ {[%clk 0:00:25.5]}
32. Ke1 {[%clk 0:00:14.4]} 32... Qe3+ {[%clk 0:00:24.5]} 33. Kf1 {[%clk
0:00:12.5]} 33... Bh3# {[%clk 0:00:25.1]} 0

[Event "Open Nuevo Centro. Jornada 2"]
[Site "Chess.com"]
[Date "2020.06.26"]
[Round "2"]
[White "SIMARRO PEIRÓ, ANDRÉS"]
[Black "Rausell Taberner, Diego"]
[Result "1-0"]
[WhiteElo "1087"]
[BlackElo "453"]
[TimeControl "180+2"]
[EndTime "10:50:26 PDT"]
[Termination "Victoria de AndresSP24 por jaque mate"]

1. e4 {[%clk 0:03:01.9]} 1... e5 {[%clk 0:02:59]} 2. Nf3 {[%clk 0:02:59.6]} 2...
Nc6 {[%clk 0:02:58.4]} 3. Nc3 {[%clk 0:02:52.6]} 3... Nf6 {[%clk 0:02:58]} 4.
Bb5 {[%clk 0:02:51.4]} 4... Bb4 {[%clk 0:02:47.3]} 5. a3 {[%clk 0:02:46.1]} 5...
a6 {[%clk 0:02:41]} 6. axb4 {[%clk 0:02:44]} 6... Nxb4 {[%clk 0:02:38.5]} 7. Bc4
{[%clk 0:02:44.2]} 7... d6 {[%clk 0:02:34.5]} 8. d3 {[%clk 0:02:42.4]} 8... Bg4
{[%clk 0:02:32]} 9. Bb3 {[%clk 0:02:23.3]} 9... O-O {[%clk 0:02:29.4]} 10. O-O
{[%clk 0:02:18.1]} 10... Nc6 {[%clk 0:02:28]} 11. h3 {[%clk 0:02:16.4]} 11...
Bh5 {[%clk 0:02:25.9]} 12. Bg5 {[%clk 0:02:15.6]} 12... Nd4 {[%clk 0:02:22.6]}
13. Nd5 {[%clk 0:01:12.6]} 13... h6 {[%clk 0:02:08.6]} 14. Nxf6+ {[%clk
0:01:06.2]} 14... gxf6 {[%clk 0:02:07.3]} 15. Bxh6 {[%clk 0:01:05.1]} 15... Re8
{[%clk 0:02:03.9]} 16. Kh2 {[%clk 0:00:53.7]} 16... Kh7 {[%clk 0:02:00.4]} 17.
Be3 {[%clk 0:00:49.1]} 17... Nxf3+ {[%clk 0:01:55.2]} 18. gxf3 {[%clk
0:00:47.2]} 18... f5 {[%clk 0:01:50.4]} 19. exf5 {[%clk 0:00:46.2]} 19... Qf6
{[%clk 0:01:46.8]} 20. Bd5 {[%clk 0:00:36.6]} 20... Qxf5 {[%clk 0:01:37.7]} 21.
Bxb7 {[%clk 0:00:35.9]} 21... Rab8 {[%clk 0:01:36.4]} 22. Bc6 {[%clk 0:00:32.9]}
22... Red8 {[%clk 0:01:33.9]} 23. Rxa6 {[%clk 0:00:29.1]} 23... Rxb2 {[%clk
0:01:21.8]} 24. Be4 {[%clk 0:00:29]} 24... Kg6 {[%clk 0:01:11.4]} 25. Bxf5+
{[%clk 0:00:27]} 25... Kxf5 {[%clk 0:01:10.2]} 26. Rg1 {[%clk 0:00:22]} 26...
Kf6 {[%clk 0:01:07.9]} 27. Bg5+ {[%clk 0:00:21.5]} 27... Ke6 {[%clk 0:01:07]}
28. Be3 {[%clk 0:00:22.3]} 28... Rb4 {[%clk 0:00:51.7]} 29. Qe2 {[%clk
0:00:21.1]} 29... Rb5 {[%clk 0:00:41.2]} 30. d4 {[%clk 0:00:20.4]} 30... exd4
{[%clk 0:00:37.6]} 31. Bxd4+ {[%clk 0:00:20]} 31... Kd7 {[%clk 0:00:33.3]} 32.
Qxb5+ {[%clk 0:00:20.8]} 32... Ke7 {[%clk 0:00:26.1]} 33. Re1+ {[%clk
0:00:19.7]} 33... Kf8 {[%clk 0:00:23.6]} 34. Qxh5 {[%clk 0:00:20.1]} 34... c6
{[%clk 0:00:15.5]} 35. Qh8# {[%clk 0:00:19.5]} 1

[Event "Open Nuevo Centro. Jornada 2"]
[Site "Chess.com"]
[Date "2020.06.26"]
[Round "2"]
[White "Gálvez Torres, Guillermo"]
[Black "Valero Martinez, Óscar"]
[Result "1-0"]
[WhiteElo "1072"]
[BlackElo "385"]
[TimeControl "180+2"]
[EndTime "10:50:48 PDT"]
[Termination "Victoria de Bgtron por jaque mate"]

1. c3 {[%clk 0:03:01.9]} 1... e5 {[%clk 0:02:53.8]} 2. c4 {[%clk 0:03:00.8]}
2... Nc6 {[%clk 0:02:45.7]} 3. g3 {[%clk 0:03:01.1]} 3... Nf6 {[%clk 0:02:45.4]}
4. Bg2 {[%clk 0:03:01.8]} 4... Bc5 {[%clk 0:02:38.4]} 5. Nc3 {[%clk 0:03:00.1]}
5... d6 {[%clk 0:02:38]} 6. e3 {[%clk 0:03:00.7]} 6... Bf5 {[%clk 0:02:29.9]} 7.
Nge2 {[%clk 0:02:57]} 7... Ng4 {[%clk 0:02:14.2]} 8. O-O {[%clk 0:02:46.6]} 8...
Nb4 {[%clk 0:01:59.7]} 9. d4 {[%clk 0:02:42.8]} 9... Bd3 {[%clk 0:01:46.9]} 10.
Bxb7 {[%clk 0:02:38.1]} 10... Rb8 {[%clk 0:01:44.7]} 11. Bg2 {[%clk 0:02:37.2]}
11... Nc2 {[%clk 0:01:33.2]} 12. Qxd3 {[%clk 0:02:24.2]} 12... Nxa1 {[%clk
0:01:24.4]} 13. Bd2 {[%clk 0:02:22.7]} 13... O-O {[%clk 0:01:17.6]} 14. Rxa1
{[%clk 0:02:21.7]} 14... Qf6 {[%clk 0:01:14.6]} 15. Nd5 {[%clk 0:02:21.9]} 15...
Qxf2+ {[%clk 0:01:02.6]} 16. Kh1 {[%clk 0:02:18.1]} 16... Rxb2 {[%clk
0:00:57.1]} 17. dxc5 {[%clk 0:02:14.9]} 17... h6 {[%clk 0:00:52.4]} 18. Nxc7
{[%clk 0:01:11.2]} 18... Rc8 {[%clk 0:00:49.5]} 19. cxd6 {[%clk 0:01:05.1]}
19... Nxe3 {[%clk 0:00:30.3]} 20. Bxe3 {[%clk 0:01:03.8]} 20... Qxe2 {[%clk
0:00:31.3]} 21. Qxe2 {[%clk 0:01:03.2]} 21... Rxe2 {[%clk 0:00:32]} 22. Bxa7
{[%clk 0:00:55.6]} 22... Rd2 {[%clk 0:00:30.3]} 23. Bc5 {[%clk 0:00:52.2]} 23...
e4 {[%clk 0:00:30.3]} 24. Bxe4 {[%clk 0:00:50.1]} 24... Rd8 {[%clk 0:00:29.5]}
25. Rf1 {[%clk 0:00:43.6]} 25... f5 {[%clk 0:00:22.8]} 26. Bxf5 {[%clk
0:00:42.9]} 26... Kh8 {[%clk 0:00:06.2]} 27. Ne6 {[%clk 0:00:38.4]} 27... Re8
{[%clk 0:00:07.1]} 28. Nc7 {[%clk 0:00:25]} 28... Ree2 {[%clk 0:00:07.7]} 29.
Rf2 {[%clk 0:00:15.3]} 29... Re1+ {[%clk 0:00:07.4]} 30. Kg2 {[%clk 0:00:13.7]}
30... Ree2 {[%clk 0:00:07]} 31. Rxe2 {[%clk 0:00:14.1]} 31... Rxe2+ {[%clk
0:00:08.3]} 32. Kf3 {[%clk 0:00:15.3]} 32... Rb2 {[%clk 0:00:08.6]} 33. d7
{[%clk 0:00:16.2]} 33... Rb8 {[%clk 0:00:07.8]} 34. Be7 {[%clk 0:00:16.7]} 34...
Rd8 {[%clk 0:00:05.1]} 35. Bxd8 {[%clk 0:00:17.1]} 35... Kg8 {[%clk 0:00:05.4]}
36. Be7 {[%clk 0:00:18]} 36... Kf7 {[%clk 0:00:05.8]} 37. d8=Q {[%clk
0:00:19.1]} 37... g6 {[%clk 0:00:04.3]} 38. Qf8# {[%clk 0:00:20]} 1